bitfinex-derivatives/quotes_BTCF0:USTF0_20250411
["timestamp","ask_amount","ask_price","bid_price","bid_amount"]
[1744379355939,0.1805506,83119.0,83118.0,0.2137686]
[1744379356454,4e-05,83120.0,83119.0,0.1203671]
[1744379356644,5.401e-05,83136.0,83135.0,0.120344]
[1744379356838,5.401e-05,83136.0,83124.0,0.0601797]
[1744379356839,0.3608,83146.0,83130.0,0.0929]
[1744379357043,0.4811498,83131.0,83130.0,0.0929]
[1744379357447,0.4811898,83131.0,83130.0,0.0929]
[1744379357747,0.1203498,83131.0,83130.0,0.2132512]
[1744379357950,0.1203898,83131.0,83130.0,0.1530749]
[1744379358150,0.1203498,83131.0,83130.0,0.1530749]
[1744379358346,0.1203898,83131.0,83130.0,0.1712155]
[1744379358751,4e-05,83131.0,83130.0,0.1712155]
[1744379359051,0.41878044,83139.0,83138.0,0.1203396]
[1744379359350,0.53911864,83139.0,83138.0,0.01814729]
[1744379359554,0.53911864,83139.0,83138.0,0.1203396]
[1744379359947,0.1203396,83138.0,83137.0,0.1]
[1744379360147,0.1203396,83138.0,83137.0,0.2203411]
[1744379360352,0.1203796,83138.0,83137.0,0.2203411]
[1744379360741,0.1203796,83138.0,83137.0,0.11807935]
[1744379360947,0.2182796,83138.0,83137.0,0.23842045]
[1744379361146,0.51654,83138.0,83098.0,0.3608]
[1744379361344,0.120386,83107.0,83106.0,0.1805702]
[1744379361541,0.4186,83122.0,83121.0,0.1203642]
[1744379361742,0.1805564,83138.0,83137.0,0.1203411]
[1744379361952,0.2407291,83138.0,83137.0,0.1203411]
[1744379362149,0.2406891,83138.0,83137.0,0.0983411]
[1744379362346,0.1203425,83136.0,83135.0,0.0601713]
[1744379362551,0.41878044,83146.0,83145.0,0.1203295]
[1744379362749,0.41878044,83146.0,83134.0,0.0601725]
[1744379362750,0.1203324,83144.0,83143.0,0.1203322]
[1744379363048,0.00018044,83146.0,83145.0,0.1203295]
[1744379363350,0.12050844,83146.0,83145.0,0.1203295]
[1744379363570,0.00018044,83146.0,83145.0,0.1203295]
[1744379363752,0.12050844,83146.0,83145.0,0.1203295]
[1744379364558,0.00018044,83146.0,83145.0,0.1203295]
[1744379365358,0.12050844,83146.0,83145.0,0.13576111]
[1744379365759,0.12050844,83146.0,83145.0,0.23106111]
[1744379366161,0.00018044,83146.0,83145.0,0.59186111]
[1744379366353,0.00018044,83146.0,83145.0,0.23106111]
[1744379366746,0.12050844,83146.0,83145.0,0.23106111]
[1744379367764,0.12050844,83146.0,83145.0,0.01543161]
[1744379368154,0.48130844,83146.0,83145.0,0.01543161]
[1744379368350,0.1203295,83145.0,83144.0,0.2022]
[1744379368557,0.1203295,83145.0,83144.0,0.3225309]
[1744379368955,0.1203295,83145.0,83144.0,0.2022]
[1744379369163,0.1203295,83145.0,83144.0,0.3225309]
[1744379369458,0.00018044,83146.0,83145.0,0.1203295]
[1744379369658,5.401e-05,83160.0,83145.0,0.1203295]
[1744379369659,5.401e-05,83160.0,83159.0,0.1203092]
[1744379369850,9.842e-05,83172.0,83167.0,0.1202977]
[1744379370051,9.842e-05,83172.0,83171.0,0.0982919]
[1744379370656,0.00013842,83172.0,83171.0,0.0982919]
[1744379370857,0.12045974,83180.0,83175.0,0.1202861]
[1744379371065,0.00018044,83180.0,83175.0,0.1202861]
[1744379371253,0.00018044,83180.0,83175.0,0.4810861]
[1744379371458,0.00484,83176.0,83175.0,0.4810861]
[1744379371765,0.00484,83176.0,83175.0,0.5831861]
[1744379372057,0.0048,83176.0,83175.0,0.5831861]
[1744379372257,0.1251246,83176.0,83175.0,0.5831861]
[1744379372452,0.00484,83176.0,83175.0,0.5831861]
[1744379373060,0.1202861,83175.0,83174.0,0.1022]
[1744379373259,0.2140861,83175.0,83174.0,0.1022]
[1744379373475,0.3142861,83175.0,83174.0,0.1022]
[1744379373963,0.1202962,83168.0,83167.0,0.2223966]
[1744379374164,0.4810962,83168.0,83167.0,0.3215966]
[1744379375261,0.1202962,83168.0,83167.0,0.3215966]
[1744379375464,0.060142,83177.0,83174.0,0.1202875]
[1744379375662,0.7794,83182.0,83169.0,0.0601471]
[1744379375663,0.1250846,83176.0,83175.0,0.2199861]
[1744379375874,0.00484,83176.0,83175.0,0.5807861]
[1744379376165,0.0048,83176.0,83175.0,0.2199861]
[1744379376965,0.0601456,83172.0,83166.0,0.1202961]
[1744379377162,0.1202948,83170.0,83169.0,0.1202948]
[1744379377463,0.1202923,83171.0,83169.0,0.0997]
[1744379377667,0.0048,83176.0,83175.0,0.1202861]
[1744379377964,0.1202919,83172.0,83171.0,0.120291]
[1744379378263,0.120287,83175.0,83174.0,0.1202861]
[1744379378468,0.1008,83175.0,83174.0,0.1202861]
[1744379378766,0.00484,83176.0,83175.0,0.1202861]
[1744379379173,0.0048,83176.0,83175.0,0.1202861]
[1744379379362,0.00484,83176.0,83175.0,0.1202861]
[1744379379666,0.1202919,83172.0,83171.0,0.1804304]
[1744379379866,0.0601445,83174.0,83173.0,0.120289]
[1744379380059,0.2025,83175.0,83168.0,0.1804396]
[1744379380060,0.1202977,83169.0,83168.0,0.1804396]
[1744379380955,0.1804458,83169.0,83162.0,0.3608]
[1744379381154,0.481102,83164.0,83155.0,0.0601573]
[1744379381361,0.481102,83164.0,83159.0,0.0601545]
[1744379381571,0.481102,83164.0,83150.0,0.3608]
[1744379381761,0.481102,83164.0,83158.0,0.0601551]
[1744379382071,0.481102,83164.0,83142.0,0.1556663]
[1744379382072,0.1804984,83146.0,83139.0,0.0601691]
[1744379382267,0.1926,83164.0,83163.0,0.1203035]
[1744379382569,0.312902,83164.0,83163.0,0.1203035]
[1744379382761,0.19264,83164.0,83163.0,0.1203035]
[1744379382957,0.19264,83164.0,83163.0,0.0983035]
[1744379383267,4e-05,83164.0,83163.0,0.0983035]
[1744379383465,4e-05,83164.0,83163.0,0.11449736]
[1744379383663,0.00018044,83172.0,83171.0,0.1202919]
[1744379383869,0.21517084,83172.0,83171.0,0.1202919]
[1744379384162,0.19568044,83172.0,83171.0,0.1202919]
[1744379384871,0.00018044,83172.0,83171.0,0.1202919]
[1744379385272,0.00022044,83172.0,83171.0,0.1202919]
[1744379387477,0.00022044,83172.0,83171.0,0.4810919]
[1744379387670,0.00018044,83172.0,83171.0,0.1202919]
[1744379387875,0.00022044,83172.0,83171.0,0.1202919]
[1744379388273,0.00018044,83172.0,83171.0,0.1202919]
[1744379388475,0.00022044,83172.0,83166.0,0.3608]
[1744379388672,0.1202927,83171.0,83168.0,0.060148]
[1744379388978,0.1202977,83168.0,83167.0,0.1202966]
[1744379389175,0.0601508,83165.0,83164.0,0.1202993]
[1744379389477,0.1203136,83156.0,83148.0,0.0601619]
[1744379389680,0.1203136,83156.0,83146.0,0.0928]
[1744379389977,0.3608,83174.0,83149.0,0.7216]
[1744379390275,0.12051084,83172.0,83171.0,0.1202919]
[1744379390663,0.12051084,83172.0,83169.0,0.0601467]
[1744379390664,0.1202933,83170.0,83169.0,0.0601467]
[1744379390878,0.120302,83165.0,83164.0,0.1202948]
[1744379391075,0.481102,83165.0,83164.0,0.1202948]
[1744379391268,0.481102,83165.0,83164.0,0.1804458]
[1744379391468,0.481142,83165.0,83164.0,0.1967415]
[1744379391779,0.1203107,83158.0,83157.0,0.1203115]
[1744379392270,0.1203136,83156.0,83149.0,0.3608]
[1744379392470,0.1203136,83156.0,83149.0,0.4209616]
[1744379392676,0.5389136,83156.0,83155.0,4e-08]
[1744379392876,0.9874136,83156.0,83155.0,4e-08]
[1744379393173,0.7374136,83156.0,83155.0,4e-08]
[1744379393676,0.9874136,83156.0,83155.0,4e-08]
[1744379393870,0.9874136,83156.0,83129.0,7e-08]
[1744379393871,0.1203512,83130.0,83129.0,7e-08]
[1744379394067,1.2605512,83130.0,83129.0,7e-08]
[1744379394681,0.1203715,83116.0,83097.0,0.0601993]
[1744379394869,0.1985,83129.0,83122.0,0.0601814]
[1744379395070,0.00018044,83124.0,83123.0,0.55809435]
[1744379395271,0.00018044,83124.0,83123.0,0.65549435]
[1744379395878,4e-05,83129.0,83128.0,0.1203541]
[1744379396077,0.4186,83149.0,83139.0,0.0601684]
[1744379396278,0.4186,83149.0,83142.0,0.1203338]
[1744379396279,0.4811324,83143.0,83142.0,0.1203338]
[1744379396475,0.4811324,83143.0,83142.0,0.13708625]
[1744379396671,0.3608,83143.0,83142.0,0.13708625]
[1744379396869,0.36084,83143.0,83142.0,0.13708625]
[1744379397073,0.4811724,83143.0,83142.0,0.01675245]
[1744379397268,0.0601693,83139.0,83137.0,0.1805071]
[1744379397477,4e-05,83143.0,83142.0,0.1203338]
[1744379397678,4e-05,83143.0,83142.0,0.13724186]
[1744379397877,0.1203724,83143.0,83142.0,0.13724186]
[1744379398277,0.1203724,83143.0,83142.0,0.11524186]
[1744379398477,0.1203724,83143.0,83142.0,0.21164186]
[1744379398680,0.3176724,83143.0,83142.0,0.21164186]
[1744379398877,0.3176724,83143.0,83142.0,0.11524186]
[1744379399080,0.120344,83135.0,83134.0,0.00018044]
[1744379399285,0.481144,83135.0,83134.0,0.0169603]
[1744379399587,0.1805716,83111.0,83110.0,0.1203798]
[1744379399784,0.5413716,83111.0,83110.0,0.01659614]
[1744379399979,0.5413716,83111.0,83105.0,0.00481316]
[1744379399980,0.120386,83106.0,83105.0,0.00481316]
[1744379400184,0.1204091,83090.0,83089.0,0.3608]
[1744379400383,0.1204091,83092.0,83091.0,0.1204048]
[1744379400575,0.1204091,83092.0,83091.0,0.1972176]
[1744379401280,0.1031,83097.0,83094.0,0.060201]
[1744379401589,0.223499,83097.0,83096.0,0.1204005]
[1744379401882,0.1204062,83092.0,83091.0,0.34747027]
[1744379402081,0.1204193,83083.0,83081.0,0.00481455]
[1744379402379,0.8420193,83083.0,83081.0,0.00481455]
[1744379402785,0.8420193,83083.0,83082.0,0.53791472]
[1744379402987,0.6814193,83083.0,83082.0,0.53791472]
[1744379403485,4e-05,83083.0,83082.0,0.37541472]
[1744379403982,0.36084,83083.0,83082.0,0.05239402]
[1744379404182,0.1204593,83083.0,83082.0,0.05239402]
[1744379404385,0.1204593,83083.0,83082.0,0.17281472]
[1744379404580,0.4812193,83083.0,83082.0,0.17281472]
[1744379404776,0.41865401,83092.0,83085.0,0.060208]
[1744379404976,0.41865401,83092.0,83091.0,0.4812077]
[1744379404977,5.401e-05,83092.0,83091.0,0.4812077]
[1744379405172,0.00018044,83098.0,83097.0,0.120399]
[1744379405578,0.36098044,83098.0,83097.0,0.120399]
[1744379405782,0.00022044,83098.0,83097.0,0.220599]
[1744379405977,0.00022044,83098.0,83097.0,0.684299]
[1744379406182,0.00018044,83098.0,83097.0,0.323499]
[1744379406382,0.00022044,83098.0,83097.0,0.684299]
[1744379406688,0.00022044,83098.0,83097.0,0.323499]
[1744379407084,0.00022044,83098.0,83097.0,0.684299]
[1744379407287,0.14349874,83105.0,83104.0,0.1203889]
[1744379407492,0.17937342,83110.0,83109.0,0.1203816]
[1744379407678,0.17937342,83110.0,83109.0,0.13701201]
[1744379408384,5.401e-05,83126.0,83115.0,0.1203729]
[1744379408690,0.0048,83128.0,83127.0,0.1203556]
[1744379408880,0.1203556,83127.0,83126.0,0.205]
[1744379409083,0.7264,83128.0,83114.0,0.060187]
[1744379409286,0.120399,83098.0,83096.0,0.3608]
[1744379409591,0.0601967,83101.0,83100.0,0.1203947]
[1744379409983,0.00018044,83105.0,83104.0,0.1203889]
[1744379410183,0.12056784,83105.0,83104.0,0.1203889]
[1744379410497,0.120399,83097.0,83096.0,0.4812005]
[1744379411198,0.120399,83097.0,83096.0,0.1204005]
[1744379412189,0.120399,83097.0,83086.0,0.00912209]
[1744379412190,0.1204091,83090.0,83086.0,0.00912209]
[1744379412395,0.1204135,83087.0,83086.0,0.00912209]
[1744379412690,0.4812135,83087.0,83086.0,0.00912209]
[1744379413197,0.1204207,83082.0,83081.0,0.00481455]
[1744379414087,0.1204607,83082.0,83081.0,0.00481455]
[1744379415085,0.1204323,83074.0,83073.0,0.00018044]
[1744379415387,0.1204323,83074.0,83040.0,0.0602407]
[1744379415388,0.1204526,83060.0,83059.0,0.1204528]
[1744379415586,0.1204555,83058.0,83057.0,0.12527284]
[1744379415782,0.1204555,83058.0,83057.0,0.00481594]
[1744379416195,0.3150555,83058.0,83057.0,0.12527294]
[1744379416394,0.3150555,83058.0,83045.0,0.3608]
[1744379416395,0.1204758,83044.0,83024.0,0.3608]
[1744379416600,0.1204758,83044.0,83043.0,0.1204773]
[1744379417305,0.1204831,83039.0,83038.0,0.1974]
[1744379417502,0.2017,83043.0,83039.0,0.0602413]
[1744379417705,0.0602407,83041.0,83038.0,0.3178838]
[1744379417898,0.1204831,83039.0,83038.0,0.1974]
[1744379418206,0.1204831,83039.0,83038.0,0.2165845]
[1744379418407,0.3221831,83039.0,83038.0,0.2165845]
[1744379418797,0.3221831,83039.0,83038.0,0.1204845]
[1744379419003,0.1204904,83034.0,83025.0,0.202]
[1744379419303,0.0602431,83037.0,83020.0,0.00892864]
[1744379419304,0.0602479,83032.0,83029.0,0.1204947]
[1744379419510,0.1622479,83031.0,83030.0,0.1024]
[1744379419806,0.1205005,83027.0,83026.0,0.0996]
[1744379420406,0.1205005,83027.0,83008.0,0.0602635]
[1744379420407,0.3608,83027.0,83004.0,0.3608]
[1744379420605,0.1205252,83010.0,83002.0,0.0602682]
[1744379420820,0.4210617,83012.0,83011.0,0.1205237]
[1744379421110,0.00018066,83018.0,83017.0,0.120515]
[1744379421303,0.1205237,83011.0,83010.0,0.1013]
[1744379421505,0.1205237,83011.0,83010.0,0.3217242]
[1744379421700,0.1205252,83010.0,83009.0,0.00481873]
[1744379421905,0.1205354,83003.0,83002.0,0.0999]
[1744379422205,0.1205354,83003.0,83002.0,0.2204368]
[1744379422400,0.1205354,83003.0,83002.0,0.0999]
[1744379422601,0.0602755,82993.0,82985.0,0.12537842]
[1744379422895,0.1205542,82990.0,82989.0,0.2012]
[1744379423102,0.1205542,82990.0,82985.0,0.00482012]
[1744379423103,0.12056,82986.0,82985.0,0.00482012]
[1744379423603,0.48136,82986.0,82985.0,0.00482012]
[1744379424503,0.48136,82986.0,82954.0,0.48476866]
[1744379424504,0.6108,82986.0,82954.0,0.48476866]
[1744379424707,0.15104,82990.0,82950.0,0.1037]
[1744379424708,0.1205949,82962.0,82950.0,0.1037]
[1744379424896,0.7818965,82964.0,82963.0,0.1205935]
[1744379424897,0.4210965,82964.0,82963.0,0.1205935]
[1744379425102,0.0602965,82964.0,82963.0,0.1205935]
[1744379425709,0.0602965,82964.0,82963.0,0.3262935]
[1744379426012,0.1629965,82964.0,82963.0,0.3262935]
[1744379426404,0.1629965,82964.0,82961.0,0.06511911]
[1744379426405,0.0603083,82948.0,82947.0,0.1206121]
[1744379426601,0.1206211,82944.0,82943.0,0.2243206]
[1744379426803,0.2037,82947.0,82942.0,0.0603113]
[1744379427003,0.00018078,82952.0,82951.0,0.1206109]
[1744379427210,5.401e-05,82957.0,82956.0,0.1206036]
[1744379427603,0.1205996,82959.0,82958.0,0.1206007]
[1744379427798,0.00018078,82960.0,82956.0,0.0603013]
[1744379427799,0.00018078,82960.0,82959.0,0.1205993]
[1744379428006,0.12077858,82960.0,82959.0,0.1205993]
[1744379428400,0.1206007,82958.0,82957.0,0.2056]
[1744379428606,0.1206007,82958.0,82943.0,0.1019]
[1744379428607,0.1206211,82944.0,82943.0,0.1019]
[1744379429118,0.1206255,82941.0,82940.0,0.1037]
[1744379429412,0.1206269,82940.0,82939.0,0.1206273]
[1744379429821,0.120621,82945.0,82939.0,0.0603141]
[1744379430108,0.120621,82945.0,82944.0,0.1206196]
[1744379430814,0.120621,82945.0,82944.0,0.2159196]
[1744379431118,0.1206298,82938.0,82910.0,0.3608]
[1744379431312,0.1206298,82938.0,82931.0,0.0953]
[1744379431611,0.1206611,82921.0,82920.0,0.1206537]
[1744379431806,0.060322,82929.0,82923.0,0.1206502]
[1744379431807,0.1206516,82924.0,82923.0,0.1206502]
[1744379432004,0.3608,82924.0,82913.0,0.01406669]
[1744379432209,0.1206502,82924.0,82923.0,0.0603257]
[1744379432408,0.1206477,82926.0,82925.0,0.1206473]
[1744379432910,0.0603305,82917.0,82914.0,0.060332]
[1744379433115,0.1809916,82917.0,82916.0,0.1206618]
[1744379433415,0.4814504,82926.0,82925.0,0.1206487]
[1744379433616,0.4814504,82926.0,82916.0,0.0603303]
[1744379433617,0.0603289,82919.0,82916.0,0.0603303]
[1744379433813,0.1206647,82914.0,82913.0,0.1254905]
[1744379434019,0.0603315,82916.0,82915.0,0.1206633]
[1744379434215,0.1206647,82914.0,82913.0,0.0048243]
[1744379434515,0.1206633,82915.0,82914.0,0.1206647]
[1744379435422,0.0603315,82916.0,82915.0,0.1206633]
[1744379435718,0.4814593,82918.0,82917.0,0.1206604]
[1744379438522,0.3608,82918.0,82915.0,0.1809934]
[1744379438722,0.1206604,82917.0,82916.0,0.1048]
[1744379438924,0.1919,82917.0,82914.0,0.1206644]
[1744379439221,0.1206647,82914.0,82913.0,0.0048243]
[1744379440028,0.1206793,82904.0,82903.0,0.1206797]
[1744379440320,0.1206793,82904.0,82894.0,0.0603468]
[1744379440520,0.1206793,82904.0,82889.0,0.0048257]
[1744379440521,0.0603454,82896.0,82893.0,0.0603475]
[1744379440721,0.0603454,82896.0,82890.0,0.0603498]
[1744379440722,0.0603397,82904.0,82890.0,0.0603498]
[1744379440923,0.0001809,82912.0,82911.0,0.1206691]
[1744379441439,0.1206778,82906.0,82905.0,0.1810155]
[1744379442220,0.1206822,82902.0,82901.0,0.0603414]
[1744379442726,0.3608,82904.0,82903.0,0.1206807]
[1744379442922,0.4814793,82904.0,82903.0,0.1206807]
[1744379443427,0.4815193,82904.0,82903.0,0.1206807]
[1744379444029,0.1206938,82896.0,82895.0,0.1810327]
[1744379444225,0.0603462,82895.0,82889.0,0.0048257]
[1744379444435,0.4814997,82890.0,82889.0,0.0048257]
[1744379445118,0.3608,82897.0,82893.0,0.0603473]
[1744379445315,0.3608,82897.0,82896.0,0.1206862]
[1744379445316,0.1206922,82897.0,82896.0,0.1206862]
[1744379445520,0.120683,82902.0,82901.0,0.1206822]
[1744379446028,0.325183,82902.0,82901.0,0.1206822]
[1744379446227,0.0603418,82902.0,82901.0,0.1206837]
[1744379446534,0.1206724,82909.0,82908.0,0.060336]
[1744379446920,0.1206724,82909.0,82908.0,0.155036]
[1744379447222,7.291e-05,82910.0,82880.0,4e-05]
[1744379447223,0.0603491,82892.0,82880.0,4e-05]
[1744379447426,0.4814997,82890.0,82887.0,0.1207028]
[1744379447727,0.4814997,82890.0,82889.0,0.1255268]
[1744379448024,0.4814997,82890.0,82889.0,0.0048257]
[1744379448224,0.6890997,82890.0,82889.0,0.0048257]
[1744379448732,0.0603542,82885.0,82880.0,0.1207138]
[1744379448926,0.0603542,82885.0,82879.0,4e-05]
[1744379448927,0.1207142,82880.0,82879.0,4e-05]
[1744379449232,0.1207201,82876.0,82875.0,5.4e-05]
[1744379449634,0.1207346,82866.0,82865.0,0.0048271]
[1744379449825,0.4632,82877.0,82858.0,0.3608]
[1744379449826,0.1207448,82859.0,82858.0,0.3608]
[1744379450026,0.120755,82852.0,82851.0,0.103]
[1744379450229,0.060384,82844.0,82841.0,0.0048285]
[1744379450433,0.3608,82842.0,82811.0,0.3608]
[1744379450626,0.1208005,82824.0,82823.0,0.0603967]
[1744379450934,0.00018102,82838.0,82837.0,0.1207769]
[1744379451430,0.0603903,82835.0,82832.0,0.2255839]
[1744379451626,0.1207871,82830.0,82829.0,7.29e-05]
[1744379451829,0.1207929,82827.0,82826.0,0.1207919]
[1744379452029,0.3608,82842.0,82824.0,0.0603977]
[1744379452233,0.2017,82841.0,82837.0,0.1207769]
[1744379452530,0.12095642,82838.0,82837.0,0.1207769]
[1744379452828,0.00018102,82838.0,82837.0,0.1207769]
[1744379453327,0.00018102,82838.0,82837.0,0.1208169]
[1744379453531,0.12095642,82838.0,82837.0,0.1207769]
[1744379453926,0.12099642,82838.0,82837.0,0.1208169]
[1744379454125,0.1207769,82837.0,82836.0,0.1048]
[1744379454323,0.1207827,82833.0,82832.0,5.4e-05]
[1744379454725,0.1207988,82822.0,82821.0,0.0966]
[1744379454926,0.1208002,82821.0,82820.0,7.29e-05]
[1744379455127,0.0604015,82821.0,82820.0,0.1208017]
[1744379455432,0.0604015,82821.0,82820.0,0.1208417]
[1744379455735,0.1207856,82831.0,82830.0,0.1811804]
[1744379455935,0.1207856,82831.0,82830.0,0.0603933]
[1744379456232,0.1207856,82831.0,82829.0,0.3608]
[1744379456233,0.1207871,82830.0,82829.0,0.1207872]
[1744379456939,0.1811712,82837.0,82836.0,0.1207769]
[1744379457136,0.0603891,82837.0,82836.0,0.1207769]
[1744379457429,0.0603891,82837.0,82836.0,0.20714]
[1744379457632,0.1207915,82828.0,82826.0,0.0603963]
[1744379457935,0.1207915,82827.0,82826.0,0.00013286]
[1744379458131,0.1207915,82827.0,82823.0,0.120796]
[1744379458132,0.1811973,82824.0,82823.0,0.120796]
[1744379458321,0.1811973,82824.0,82822.0,5.4e-05]
[1744379458322,0.1207973,82823.0,82822.0,5.4e-05]
[1744379458524,0.2200973,82823.0,82822.0,5.4e-05]
[1744379458735,0.5808973,82823.0,82822.0,0.1208528]
[1744379458933,0.6872973,82823.0,82822.0,5.4e-05]
[1744379459236,0.1208002,82821.0,82820.0,0.3279011]
[1744379459433,0.4211993,82823.0,82822.0,0.1207988]
[1744379459434,0.3608,82823.0,82822.0,0.1207988]
[1744379459640,0.1207973,82823.0,82822.0,0.1811975]
[1744379460042,0.1207973,82823.0,82822.0,0.0603987]
[1744379460334,0.1207657,82845.0,82837.0,0.1207769]
[1744379460522,2e-08,82838.0,82837.0,0.4815769]
[1744379460726,0.0048,82864.0,82862.0,0.1207405]
[1744379461127,0.0048,82864.0,82831.0,0.3608]
[1744379461327,0.0603813,82847.0,82838.0,0.0971]
[1744379461536,0.1811478,82847.0,82846.0,0.1207638]
[1744379461727,0.3608,82847.0,82846.0,0.1207638]
[1744379461929,0.4815623,82847.0,82846.0,0.1207638]
[1744379462336,0.3608,82847.0,82846.0,0.2197638]
[1744379462530,0.1064,82853.0,82849.0,0.060379]
[1744379462837,0.3608,82854.0,82853.0,0.1207536]
[1744379463139,0.1207565,82851.0,82850.0,0.198]
[1744379463338,0.3608,82854.0,82853.0,0.1207536]
[1744379463637,0.1207565,82851.0,82850.0,0.097]
[1744379463839,0.0603838,82845.0,82844.0,0.1207626]
[1744379464039,0.120774,82840.0,82839.0,0.0603855]
[1744379464337,0.1207589,82850.0,82849.0,0.1207579]
[1744379464538,0.1207609,82849.0,82848.0,0.1207599]
[1744379464741,0.0603848,82844.0,82843.0,0.0603836]
[1744379465040,0.1207625,82847.0,82844.0,0.060383]
[1744379465228,0.1207625,82847.0,82846.0,0.1207623]
[1744379465436,0.060375,82856.0,82854.0,0.1207521]
[1744379465738,0.1811383,82851.0,82850.0,0.0603781]
[1744379465929,0.0603825,82846.0,82843.0,0.1208068]
[1744379466134,0.0603825,82846.0,82845.0,0.1207652]
[1744379466339,0.0603805,82848.0,82847.0,0.1207623]
[1744379466837,0.1207638,82846.0,82845.0,0.0603819]
[1744379467242,0.1207638,82846.0,82845.0,0.0604219]
[1744379467736,0.4589,82851.0,82850.0,0.1207579]
[1744379468040,0.1811405,82850.0,82849.0,0.1207588]
[1744379468343,0.3608,82851.0,82850.0,0.1207579]
[1744379468639,0.00018102,82855.0,82854.0,0.1207521]
[1744379468941,0.00018102,82855.0,82854.0,0.13741727]
[1744379469635,0.00018102,82855.0,82854.0,0.38741727]
[1744379470035,0.00018102,82855.0,82854.0,0.13741727]
[1744379470433,0.12093172,82855.0,82854.0,0.01666517]
[1744379470631,0.00018102,82855.0,82854.0,0.13741727]
[1744379470932,0.3608,82876.0,82863.0,0.120739]
[1744379471134,4e-05,82880.0,82863.0,0.13740417]
[1744379471337,0.1207285,82871.0,82863.0,0.13740417]
[1744379471537,0.0603595,82877.0,82863.0,0.13740417]
[1744379471739,0.1207335,82867.0,82863.0,0.13744417]
[1744379472052,0.0603652,82869.0,82863.0,0.13744417]
[1744379472053,0.1207323,82868.0,82863.0,0.13744417]
[1744379472350,0.1207366,82865.0,82863.0,0.13744417]
[1744379472543,0.1811007,82867.0,82863.0,0.13740417]
[1744379472841,0.00018102,82872.0,82863.0,0.13744417]
[1744379473142,0.1207373,82865.0,82863.0,0.13744417]
[1744379473531,0.060368,82866.0,82863.0,0.13744417]
[1744379473532,5.401e-05,82883.0,82871.0,0.1207273]
[1744379473729,5.401e-05,82883.0,82871.0,0.49819247]
[1744379473730,2e-08,82872.0,82871.0,0.49819247]
[1744379474133,0.12072592,82872.0,82871.0,0.13739247]
[1744379474737,0.12072592,82872.0,82871.0,0.01670517]
[1744379475135,0.32332592,82872.0,82871.0,0.13743247]
[1744379475335,2e-08,82872.0,82871.0,0.13743247]
[1744379475542,2e-08,82872.0,82871.0,0.49823247]
[1744379476141,2e-08,82872.0,82871.0,0.34293247]
[1744379477941,2e-08,82872.0,82871.0,0.59293247]
[1744379478745,2e-08,82898.0,82897.0,0.1206895]
[1744379478943,2e-08,82898.0,82897.0,0.1372431]
[1744379479342,4.002e-05,82898.0,82897.0,0.1372431]
[1744379479739,4.002e-05,82898.0,82897.0,0.3499431]
[1744379480144,4.002e-05,82898.0,82897.0,0.1233536]
[1744379480336,0.1206938,82894.0,82893.0,0.0603475]
[1744379480542,0.1206938,82894.0,82893.0,0.1371716]
[1744379480748,0.0603483,82893.0,82889.0,0.00906742]
[1744379480949,0.4814997,82890.0,82889.0,0.12976852]
[1744379481152,0.1207186,82877.0,82876.0,0.1047]
[1744379481448,0.120723,82874.0,82870.0,0.1207285]
[1744379481647,0.1207273,82871.0,82870.0,0.1207285]
[1744379482042,0.1207273,82871.0,82865.0,0.0048271]
[1744379482043,0.1207346,82866.0,82865.0,0.0048271]
[1744379482753,0.1207346,82866.0,82865.0,0.1256032]
[1744379483050,0.1207346,82866.0,82865.0,0.0048671]
[1744379483247,0.3707346,82866.0,82865.0,0.0048671]
[1744379483451,0.1207346,82866.0,82865.0,0.0048671]
[1744379483656,0.1207346,82866.0,82865.0,0.0048271]
[1744379483843,0.1207346,82866.0,82865.0,0.0048671]
[1744379484249,0.120739,82863.0,82862.0,0.00018102]
[1744379484548,0.0603711,82861.0,82841.0,0.0048285]
[1744379484749,0.3608,82850.0,82847.0,5.4e-05]
[1744379485053,0.1011,82849.0,82848.0,0.1207609]
[1744379485545,0.3608,82850.0,82849.0,0.1207594]
[1744379486848,0.1207555,82852.0,82851.0,0.1207565]
[1744379487047,0.00018102,82857.0,82856.0,0.1207492]
[1744379488458,0.00018102,82857.0,82841.0,0.0048285]
[1744379488654,0.1207579,82851.0,82850.0,0.1207538]
[1744379488849,0.0603761,82854.0,82853.0,0.1207536]
[1744379489048,0.12075,82856.0,82855.0,0.1207507]
[1744379489254,0.00018102,82857.0,82856.0,0.1207492]
[1744379490042,0.48172872,82857.0,82856.0,0.1207492]
[1744379490246,0.00018102,82857.0,82856.0,0.1207492]
[1744379490652,0.12092872,82857.0,82856.0,0.1207492]
[1744379491150,0.0603786,82852.0,82851.0,0.120755]
[1744379491357,0.00018102,82857.0,82856.0,0.1207492]
[1744379491553,2e-08,82857.0,82856.0,0.7315492]
[1744379491759,2e-08,82857.0,82856.0,0.4815492]
[1744379492852,2e-08,82857.0,82856.0,0.1207492]
[1744379493253,2e-08,82857.0,82856.0,0.1207892]
[1744379494449,2e-08,82857.0,82856.0,0.3707892]
[1744379494962,2e-08,82857.0,82856.0,0.1207892]
[1744379496059,2e-08,82857.0,82856.0,0.3347892]
[1744379496656,2e-08,82857.0,82856.0,0.5847892]
[1744379497457,2e-08,82857.0,82856.0,0.3347892]
[1744379497651,2e-08,82857.0,82856.0,0.3347492]
[1744379497852,2e-08,82857.0,82856.0,0.3347892]
[1744379498052,2e-08,82857.0,82856.0,0.3347492]
[1744379498256,2e-08,82857.0,82856.0,0.3347892]
[1744379499058,2e-08,82857.0,82856.0,0.6955492]
[1744379499257,2e-08,82857.0,82856.0,0.6955892]
[1744379499565,0.10651477,82867.0,82866.0,0.1207346]
[1744379499759,0.10651477,82867.0,82866.0,0.4815346]
[1744379500060,0.06641037,82867.0,82866.0,0.6839346]
[1744379500661,0.06641037,82867.0,82866.0,0.1207346]
[1744379500866,0.1207292,82870.0,82869.0,0.1207303]
[1744379501068,0.060364,82871.0,82870.0,0.1207288]
[1744379501360,0.29750207,82872.0,82871.0,0.1207273]
[1744379501550,0.54750207,82872.0,82871.0,0.1207273]
[1744379501749,0.54750207,82872.0,82861.0,0.0603702]
[1744379501750,0.1207375,82864.0,82863.0,0.1811069]
[1744379502369,0.1811165,82860.0,82859.0,0.1207443]
[1744379502556,0.4211717,82860.0,82859.0,0.1207443]
[1744379502758,0.0603717,82860.0,82859.0,0.1207443]
[1744379503060,0.3608,82868.0,82867.0,0.1207332]
[1744379503262,0.23713967,82872.0,82871.0,0.1207273]
[1744379504067,0.17677617,82872.0,82871.0,0.4815273]
[1744379504267,0.17677617,82872.0,82871.0,0.6943273]
[1744379504464,0.17677617,82872.0,82871.0,0.1207273]
[1744379504666,0.00018102,82875.0,82874.0,0.120723]
[1744379504867,0.00018102,82875.0,82874.0,0.481523]
[1744379505363,0.00018102,82875.0,82874.0,0.695623]
[1744379505761,0.00022102,82875.0,82874.0,0.695623]